fUSD/lending_fUSD_20240428
["ID","MTS","AMOUNT","RATE_DAILY","PERIOD"]
[324817212,1714342257620,-706.99,0.0001178,2]
[324817213,1714342257630,-1025.81,0.0001178,2]
[324817214,1714342257639,-1930.7,0.0001178,2]
[324817215,1714342257650,-1647.94,0.0001178,2]
[324817216,1714342257660,-500.0,0.0001178,2]
[324817217,1714342257670,-500.0,0.0001178,2]
[324817218,1714342257679,-500.0,0.0001178,2]
[324817219,1714342257688,-1776.76,0.0001178,2]
[324817220,1714342257698,-5724.15,0.0001178,2]
[324817221,1714342257707,-500.0,0.0001178,2]
[324817222,1714342257716,-544.69,0.0001178,2]
[324817223,1714342257726,-500.0,0.0001178,2]
[324817224,1714342257735,-500.0,0.0001178,2]
[324817225,1714342257744,-2058.64,0.0001178,2]
[324817226,1714342257753,-1905.91,0.0001178,2]
[324817227,1714342257762,-1586.6,0.0001178,2]
[324817228,1714342257772,-500.0,0.0001178,2]
[324817229,1714342257781,-629.11,0.0001178,2]
[324817230,1714342257791,-1059.3,0.0001178,2]
[324817231,1714342257800,-500.0,0.0001178,2]
[324817232,1714342257810,-3625.09,0.0001178,2]
[324817233,1714342257819,-355.49,0.0001178,2]
[324817234,1714342257828,-1241.59,0.0001178,2]
[324817235,1714342257838,-500.0,0.0001178,2]
[324817236,1714342257848,-500.0,0.0001178,2]
[324817237,1714342257856,-550.11,0.0001178,2]
[324817238,1714342257865,-500.0,0.0001178,2]
[324817239,1714342257874,-644.97,0.0001178,2]
[324817240,1714342257883,-1057.3,0.0001178,2]
[324817241,1714342257892,-500.0,0.0001178,2]
[324817242,1714342257902,-500.0,0.0001178,2]
[324817243,1714342257912,-500.0,0.0001178,2]
[324817244,1714342257923,-5052.22,0.0001178,2]
[324817245,1714342257932,-629.69,0.0001178,2]
[324817246,1714342257945,-500.0,0.0001178,2]
[324817247,1714342257954,-1343.85,0.0001178,2]
[324817248,1714342257965,-500.0,0.0001178,2]
[324817249,1714342257974,-616.38,0.0001178,2]
[324817250,1714342257983,-728.62,0.0001178,2]
[324817251,1714342257992,-625.41,0.0001178,2]
[324817252,1714342258002,-500.0,0.0001178,2]
[324817253,1714342258012,-500.0,0.0001178,2]
[324817254,1714342258023,-500.0,0.0001178,2]
[324817255,1714342258035,-500.0,0.0001178,2]
[324817256,1714342258045,-1176.85,0.0001178,2]
[324817257,1714342258056,-500.0,0.0001178,2]
[324817258,1714342258065,-500.0,0.0001178,2]
[324817259,1714342258075,-5743.33,0.0001178,2]
[324817260,1714342258084,-500.0,0.0001178,2]
[324817261,1714342258093,-500.0,0.0001178,2]
[324817262,1714342258103,-500.0,0.0001178,2]
[324817263,1714342258113,-500.0,0.0001178,2]
[324817264,1714342258123,-400.0,0.00011985,2]
[324817265,1714342258132,-12763.79636228,0.00012,2]
[324817266,1714342258141,-5000.0,0.00012,2]
[324817267,1714342258150,-166.88,0.00012033,2]
[324817268,1714342258161,-500.0,0.00012054,2]
[324817269,1714342258170,-500.0,0.00012054,2]
[324817270,1714342258179,-400.23,0.00012054,2]
[324817271,1714342258189,-500.0,0.00012054,2]
[324817272,1714342258199,-500.0,0.00012054,2]
[324817273,1714342258208,-289.38,0.00012054,2]
[324817274,1714342258217,-500.0,0.00012054,2]
[324817275,1714342258226,-500.0,0.00012054,2]
[324817276,1714342258236,-500.0,0.00012054,2]
[324817277,1714342258245,-500.0,0.00012054,2]
[324817278,1714342258255,-500.0,0.00012054,2]
[324817279,1714342258264,-500.0,0.00012054,2]
[324817280,1714342258273,-500.0,0.00012054,2]
[324817281,1714342258283,-234.16,0.00012054,2]
[324817282,1714342258292,-504.42039534,0.00012054,2]
[324817283,1714342258301,-500.0,0.00012054,2]
[324817284,1714342258310,-373.5,0.00012054,2]
[324817285,1714342258320,-500.0,0.00012054,2]
[324817286,1714342258329,-500.0,0.00012054,2]
[324817287,1714342258339,-522.87,0.00012054,2]
[324817288,1714342258348,-500.0,0.00012054,2]
[324817289,1714342258357,-500.0,0.00012054,2]
[324817290,1714342258366,-500.0,0.00012054,2]
[324817291,1714342258376,-500.0,0.00012054,2]
[324817292,1714342258385,-500.0,0.00012054,2]
[324817293,1714342258396,-500.0,0.00012054,2]
[324817294,1714342258406,-500.0,0.00012054,2]
[324817295,1714342258574,-500.0,0.00012054,2]
[324817296,1714342258585,-500.0,0.00012054,2]
[324817297,1714342258595,-500.0,0.00012054,2]
[324817298,1714342258605,-500.0,0.00012054,2]
[324817299,1714342258614,-500.0,0.00012054,2]
[324817300,1714342258624,-500.0,0.00012054,2]
[324817301,1714342258634,-500.0,0.00012054,2]
[324817302,1714342258645,-500.0,0.00012054,2]
[324817303,1714342258654,-500.0,0.00012054,2]
[324817304,1714342258663,-500.0,0.00012054,2]
[324817305,1714342258673,-500.0,0.00012054,2]
[324817306,1714342258682,-500.0,0.00012054,2]
[324817307,1714342258691,-500.0,0.00012054,2]
[324817308,1714342258701,-500.0,0.00012054,2]
[324817309,1714342258711,-329.25,0.00012054,2]
[324817310,1714342258720,-500.0,0.00012054,2]
[324817311,1714342258730,-500.0,0.00012054,2]
[324817312,1714342258739,-500.0,0.00012054,2]
[324817313,1714342258748,-500.0,0.00012054,2]
[324817314,1714342258757,-500.0,0.00012054,2]
[324817315,1714342258766,-500.0,0.00012054,2]
[324817316,1714342258776,-500.0,0.00012054,2]
[324817317,1714342258785,-500.0,0.00012054,2]
[324817318,1714342258794,-500.0,0.00012054,2]
[324817319,1714342258803,-500.0,0.00012054,2]
[324817320,1714342258812,-500.0,0.00012054,2]
[324817321,1714342258821,-500.0,0.00012054,2]
[324817322,1714342258830,-500.0,0.00012054,2]
[324817323,1714342258840,-500.0,0.00012054,2]
[324817324,1714342258849,-500.0,0.00012054,2]
[324817325,1714342258858,-500.0,0.00012054,2]
[324817326,1714342258868,-500.0,0.00012054,2]
[324817327,1714342258877,-500.0,0.00012054,2]
[324817328,1714342258886,-500.0,0.00012054,2]
[324817329,1714342258906,-523.45,0.00012054,2]
[324817330,1714342258917,-500.0,0.00012054,2]
[324817331,1714342258926,-500.0,0.00012054,2]
[324817332,1714342258936,-500.0,0.00012054,2]
[324817333,1714342258946,-500.0,0.00012054,2]
[324817334,1714342258956,-500.0,0.00012054,2]
[324817335,1714342258966,-500.0,0.00012054,2]
[324817336,1714342258976,-500.0,0.00012054,2]
[324817337,1714342258985,-227.32,0.00012054,2]
[324817338,1714342258995,-500.0,0.00012054,2]
[324817339,1714342259005,-500.0,0.00012054,2]
[324817340,1714342259015,-500.0,0.00012054,2]
[324817341,1714342259024,-459.42,0.00012054,2]
[324817342,1714342259034,-500.0,0.00012054,2]
[324817343,1714342259044,-500.0,0.00012054,2]
[324817344,1714342259053,-500.0,0.00012054,2]
[324817345,1714342259063,-500.0,0.00012054,2]
[324817346,1714342259073,-500.0,0.00012054,2]
[324817347,1714342259082,-500.0,0.00012054,2]
[324817348,1714342259092,-500.0,0.00012054,2]
[324817349,1714342259102,-500.0,0.00012054,2]
[324817350,1714342259111,-500.0,0.00012054,2]
[324817351,1714342259121,-500.0,0.00012054,2]
[324817352,1714342259131,-250.39,0.00012054,2]
[324817353,1714342259141,-500.0,0.00012054,2]
[324817354,1714342259150,-500.0,0.00012054,2]
[324817355,1714342259160,-500.0,0.00012054,2]
[324817356,1714342259169,-500.0,0.00012054,2]
[324817357,1714342259179,-500.0,0.00012054,2]
[324817358,1714342259188,-574.58,0.00012054,2]
[324817359,1714342259199,-516.59,0.00012054,2]
[324817360,1714342259208,-623.2,0.00012054,2]
[324817361,1714342259217,-500.0,0.00012054,2]
[324817362,1714342259227,-1056.15,0.00012054,2]
[324817363,1714342259236,-500.0,0.00012054,2]
[324817364,1714342259246,-415.65,0.00012054,2]
[324817365,1714342259256,-500.0,0.00012054,2]
[324817366,1714342259266,-2909.84,0.00012054,2]
[324817367,1714342259275,-500.0,0.00012054,2]
[324817368,1714342259284,-561.0,0.00012054,2]
[324817369,1714342259294,-500.0,0.00012054,2]
[324817370,1714342259303,-500.0,0.00012054,2]
[324817371,1714342259313,-1217.6,0.00012054,2]
[324817372,1714342259323,-500.0,0.00012054,2]
[324817373,1714342259332,-500.0,0.00012054,2]
[324817374,1714342259341,-500.0,0.00012054,2]
[324817375,1714342259350,-500.0,0.00012054,2]
[324817376,1714342259359,-500.0,0.00012054,2]
[324817377,1714342259369,-608.99,0.00012054,2]
[324817378,1714342259378,-500.0,0.00012054,2]
[324817379,1714342259388,-500.0,0.00012054,2]
[324817380,1714342259398,-500.0,0.00012054,2]
[324817381,1714342259407,-523.06,0.00012054,2]
[324817382,1714342259416,-500.0,0.00012054,2]
[324817383,1714342259429,-500.0,0.00012054,2]
[324817384,1714342259438,-500.0,0.00012054,2]
[324817385,1714342259448,-1823.73,0.00012054,2]
[324817386,1714342259457,-500.0,0.00012054,2]
[324817387,1714342259468,-500.0,0.00012054,2]
[324817388,1714342259478,-500.0,0.00012054,2]
[324817389,1714342259487,-500.0,0.00012054,2]
[324817390,1714342259496,-604.39,0.00012054,2]
[324817391,1714342259506,-761.31,0.00012054,2]
[324817392,1714342259516,-500.0,0.00012054,2]
[324817393,1714342259526,-514.02,0.00012054,2]
[324817394,1714342259535,-500.0,0.00012054,2]
[324817395,1714342259545,-632.96,0.00012054,2]
[324817396,1714342259554,-500.0,0.00012054,2]
[324817397,1714342259564,-500.0,0.00012054,2]
[324817398,1714342259573,-500.0,0.00012054,2]
[324817399,1714342259582,-500.0,0.00012054,2]
[324817400,1714342259591,-500.0,0.00012054,2]
[324817401,1714342259601,-500.0,0.00012054,2]
[324817402,1714342259610,-500.0,0.00012054,2]
[324817403,1714342259620,-988.16,0.00012054,2]
[324817404,1714342259629,-500.0,0.00012054,2]
[324817405,1714342259639,-580.79,0.00012054,2]
[324817406,1714342259648,-467.49,0.00012054,2]
[324817407,1714342259657,-500.0,0.00012054,2]
[324817408,1714342259666,-500.0,0.00012054,2]
[324817409,1714342259675,-665.78,0.00012054,2]
[324817410,1714342259685,-644.82,0.00012054,2]
[324817411,1714342259695,-500.0,0.00012054,2]
[324817412,1714342259703,-2117.93,0.00012054,2]
[324817413,1714342259713,-527.0,0.00012054,2]
[324817414,1714342259722,-594.45,0.00012054,2]
[324817415,1714342259731,-500.0,0.00012054,2]
[324817416,1714342259741,-1502.0,0.00012054,2]
[324817417,1714342259750,-500.0,0.00012054,2]
[324817418,1714342259759,-756.93,0.00012054,2]
[324817419,1714342259768,-19570.71,0.00012054,2]
[324817420,1714342259778,-500.0,0.00012054,2]
[324817421,1714342259787,-706.99,0.00012054,2]
[324817422,1714342259796,-1025.81,0.00012054,2]
[324817423,1714342259806,-1930.7,0.00012054,2]
[324817424,1714342259815,-1647.94,0.00012054,2]
[324817425,1714342259824,-500.0,0.00012054,2]
[324817426,1714342259834,-500.0,0.00012054,2]
[324817427,1714342259843,-189.71,0.00012054,2]
[324817428,1714342259852,-1776.76,0.00012054,2]
[324817429,1714342259861,-5724.15,0.00012054,2]
[324817430,1714342259870,-500.0,0.00012054,2]
[324817431,1714342259879,-544.69,0.00012054,2]
[324817432,1714342259888,-500.0,0.00012054,2]
[324817433,1714342259897,-617.11,0.00012054,2]
[324817434,1714342259906,-2058.64,0.00012054,2]
[324817435,1714342259916,-1905.91,0.00012054,2]
[324817436,1714342259926,-1586.6,0.00012054,2]
[324817437,1714342259935,-500.0,0.00012054,2]
[324817438,1714342259944,-629.11,0.00012054,2]
[324817439,1714342259953,-1059.3,0.00012054,2]
[324817440,1714342259962,-3625.09,0.00012054,2]
[324817441,1714342259971,-1241.59,0.00012054,2]
[324817442,1714342259980,-500.0,0.00012054,2]
[324817443,1714342259989,-550.11,0.00012054,2]
[324817444,1714342259999,-500.0,0.00012054,2]
[324817445,1714342260008,-1057.3,0.00012054,2]
[324817446,1714342260018,-500.0,0.00012054,2]
[324817447,1714342260027,-500.0,0.00012054,2]
[324817448,1714342260036,-500.0,0.00012054,2]
[324817449,1714342260045,-5052.22,0.00012054,2]
[324817450,1714342260055,-629.69,0.00012054,2]
[324817451,1714342260064,-500.0,0.00012054,2]
[324817452,1714342260073,-1343.85,0.00012054,2]
[324817453,1714342260082,-500.0,0.00012054,2]
[324817454,1714342260092,-616.38,0.00012054,2]
[324817455,1714342260101,-728.62,0.00012054,2]
[324817456,1714342260111,-625.41,0.00012054,2]
[324817457,1714342260120,-500.0,0.00012054,2]
[324817458,1714342260130,-500.0,0.00012054,2]
[324817459,1714342260139,-500.0,0.00012054,2]
[324817460,1714342260148,-500.0,0.00012054,2]
[324817461,1714342260158,-1176.85,0.00012054,2]
[324817462,1714342260167,-500.0,0.00012054,2]
[324817463,1714342260176,-5743.33,0.00012054,2]
[324817464,1714342260186,-500.0,0.00012054,2]
[324817465,1714342260195,-500.0,0.00012054,2]
[324817466,1714342260205,-500.0,0.00012054,2]
[324817467,1714342260214,-500.0,0.00012054,2]
[324817468,1714342260223,-500.0,0.00012054,2]
[324817469,1714342260233,-633.64,0.00012328,2]
[324817470,1714342260243,-500.0,0.00012328,2]
[324817471,1714342260252,-500.0,0.00012328,2]
[324817472,1714342260262,-198.5,0.00012328,2]
[324817473,1714342260272,-500.0,0.00012328,2]
[324817474,1714342260281,-500.0,0.00012328,2]
[324817475,1714342260290,-500.0,0.00012328,2]
[324817476,1714342260300,-500.0,0.00012328,2]
[324817477,1714342260309,-520.83,0.00012328,2]
[324817478,1714342260318,-237.97351983,0.00012328,2]
[324817479,1714342260327,-500.0,0.00012328,2]
[324817480,1714342260337,-500.0,0.00012328,2]
[324817481,1714342260347,-522.87,0.00012328,2]
[324817482,1714342260356,-500.0,0.00012328,2]
[324817483,1714342260367,-500.0,0.00012328,2]
[324817484,1714342260377,-500.0,0.00012328,2]
[324817485,1714342260388,-500.0,0.00012328,2]
[324817486,1714342260398,-500.0,0.00012328,2]
[324817487,1714342260409,-500.0,0.00012328,2]
[324817488,1714342260420,-500.0,0.00012328,2]
[324817489,1714342260434,-500.0,0.00012328,2]
[324817490,1714342260444,-500.0,0.00012328,2]
[324817491,1714342260453,-500.0,0.00012328,2]
[324817492,1714342260463,-500.0,0.00012328,2]
[324817493,1714342260472,-500.0,0.00012328,2]
[324817494,1714342260483,-500.0,0.00012328,2]
[324817495,1714342260493,-500.0,0.00012328,2]
[324817496,1714342260504,-554.65,0.00012328,2]
[324817497,1714342260514,-500.0,0.00012328,2]
[324817498,1714342260523,-500.0,0.00012328,2]
[324817499,1714342260532,-607.61,0.00012328,2]
[324817500,1714342260541,-500.0,0.00012328,2]
[324817501,1714342260551,-514.5,0.00012328,2]
[324817502,1714342260560,-500.0,0.00012328,2]
[324817503,1714342260569,-500.0,0.00012328,2]
[324817504,1714342260578,-500.0,0.00012328,2]
[324817505,1714342260587,-500.0,0.00012328,2]
[324817506,1714342260599,-500.0,0.00012328,2]
[324817507,1714342260608,-500.0,0.00012328,2]
[324817508,1714342260618,-500.0,0.00012328,2]
[324817509,1714342260627,-500.0,0.00012328,2]
[324817510,1714342260636,-500.0,0.00012328,2]
[324817511,1714342260646,-500.0,0.00012328,2]
[324817512,1714342260655,-500.0,0.00012328,2]
[324817513,1714342260665,-500.0,0.00012328,2]
[324817514,1714342260674,-500.0,0.00012328,2]
[324817515,1714342260683,-532.51,0.00012328,2]
[324817516,1714342260693,-500.0,0.00012328,2]
[324817517,1714342260703,-500.0,0.00012328,2]
[324817518,1714342260712,-500.0,0.00012328,2]
[324817519,1714342260722,-631.26,0.00012328,2]
[324817520,1714342260732,-500.0,0.00012328,2]
[324817521,1714342260741,-500.0,0.00012328,2]
[324817522,1714342260750,-500.0,0.00012328,2]
[324817523,1714342260759,-513.15,0.00012328,2]
[324817524,1714342260768,-500.0,0.00012328,2]
[324817525,1714342260778,-500.0,0.00012328,2]
[324817526,1714342260787,-195.84,0.00012328,2]
[324817527,1714342260796,-500.0,0.00012328,2]
[324817528,1714342260805,-500.0,0.00012328,2]
[324817529,1714342260814,-500.0,0.00012328,2]
[324817530,1714342260823,-500.0,0.00012328,2]
[324817531,1714342260832,-629.53,0.00012328,2]
[324817532,1714342260842,-500.0,0.00012328,2]
[324817533,1714342260854,-500.0,0.00012328,2]
[324817534,1714342260864,-500.0,0.00012328,2]
[324817535,1714342260873,-500.0,0.00012328,2]
[324817536,1714342260883,-500.0,0.00012328,2]
[324817537,1714342260892,-500.0,0.00012328,2]
[324817538,1714342260901,-500.0,0.00012328,2]
[324817539,1714342260910,-500.0,0.00012328,2]
[324817540,1714342260920,-500.0,0.00012328,2]
[324817541,1714342260929,-500.0,0.00012328,2]
[324817542,1714342260939,-574.58,0.00012328,2]
[324817543,1714342260948,-516.59,0.00012328,2]
[324817544,1714342260958,-623.2,0.00012328,2]
[324817545,1714342260967,-500.0,0.00012328,2]
[324817546,1714342260976,-1056.15,0.00012328,2]
[324817547,1714342260985,-500.0,0.00012328,2]
[324817548,1714342260994,-2909.84,0.00012328,2]
[324817549,1714342261003,-638.36,0.00012328,2]
[324817550,1714342261012,-561.0,0.00012328,2]
[324817551,1714342261022,-500.0,0.00012328,2]
[324817552,1714342261031,-500.0,0.00012328,2]
[324817553,1714342261040,-1217.6,0.00012328,2]
[324817554,1714342261050,-500.0,0.00012328,2]
[324817555,1714342261059,-500.0,0.00012328,2]
[324817556,1714342261068,-500.0,0.00012328,2]
[324817557,1714342261077,-608.99,0.00012328,2]
[324817558,1714342261086,-500.0,0.00012328,2]
[324817559,1714342261096,-523.06,0.00012328,2]
[324817560,1714342261105,-500.0,0.00012328,2]
[324817561,1714342261114,-500.0,0.00012328,2]
[324817562,1714342261124,-1823.73,0.00012328,2]
[324817563,1714342261133,-500.0,0.00012328,2]
[324817564,1714342261143,-500.0,0.00012328,2]
[324817565,1714342261153,-500.0,0.00012328,2]
[324817566,1714342261163,-604.39,0.00012328,2]
[324817567,1714342261173,-761.31,0.00012328,2]
[324817568,1714342261182,-500.0,0.00012328,2]
[324817569,1714342261192,-514.02,0.00012328,2]
[324817570,1714342261205,-500.0,0.00012328,2]
[324817571,1714342261214,-632.96,0.00012328,2]
[324817572,1714342261223,-500.0,0.00012328,2]
[324817573,1714342261233,-500.0,0.00012328,2]
[324817574,1714342261242,-500.0,0.00012328,2]
[324817575,1714342261251,-271.51424445,0.00012328,2]
[324817576,1714342261261,-500.0,0.00012328,2]
[324817577,1714342261271,-500.0,0.00012328,2]
[324817578,1714342261280,-518.32,0.00012328,2]
[324817579,1714342261290,-988.16,0.00012328,2]
[324817580,1714342261300,-580.79,0.00012328,2]
[324817581,1714342261310,-500.0,0.00012328,2]
[324817582,1714342261319,-500.0,0.00012328,2]
[324817583,1714342261329,-665.78,0.00012328,2]
[324817584,1714342261339,-644.82,0.00012328,2]
[324817585,1714342261349,-500.0,0.00012328,2]
[324817586,1714342261359,-2117.93,0.00012328,2]
[324817587,1714342261368,-527.0,0.00012328,2]
[324817588,1714342261377,-1502.0,0.00012328,2]
[324817589,1714342261387,-756.93,0.00012328,2]
[324817590,1714342261397,-500.0,0.00012328,2]
[324817591,1714342261406,-19570.71,0.00012328,2]
[324817592,1714342261416,-500.0,0.00012328,2]
[324817593,1714342261430,-706.99,0.00012328,2]
[324817594,1714342261439,-1025.81,0.00012328,2]
[324817595,1714342261449,-1930.7,0.00012328,2]
[324817596,1714342261459,-1647.94,0.00012328,2]
[324817597,1714342261643,-500.0,0.00012328,2]
[324817598,1714342261653,-500.0,0.00012328,2]
[324817599,1714342261663,-1776.76,0.00012328,2]
[324817600,1714342261673,-5724.15,0.00012328,2]
[324817601,1714342261683,-500.0,0.00012328,2]
[324817602,1714342261692,-544.69,0.00012328,2]
[324817603,1714342261706,-500.0,0.00012328,2]
[324817604,1714342261715,-2058.64,0.00012328,2]
[324817605,1714342261724,-1905.91,0.00012328,2]
[324817606,1714342261733,-1586.6,0.00012328,2]
[324817607,1714342261743,-629.11,0.00012328,2]
[324817608,1714342261752,-1059.3,0.00012328,2]
[324817609,1714342261762,-3625.09,0.00012328,2]
[324817610,1714342261771,-1241.59,0.00012328,2]
[324817611,1714342261781,-550.11,0.00012328,2]
[324817612,1714342261790,-500.0,0.00012328,2]
[324817613,1714342261799,-1057.3,0.00012328,2]
[324817614,1714342261808,-500.0,0.00012328,2]
[324817615,1714342261817,-500.0,0.00012328,2]
[324817616,1714342261827,-500.0,0.00012328,2]
[324817617,1714342261836,-5052.22,0.00012328,2]
[324817618,1714342261845,-629.69,0.00012328,2]
[324817619,1714342261854,-1343.85,0.00012328,2]
[324817620,1714342261863,-500.0,0.00012328,2]
[324817621,1714342261872,-616.38,0.00012328,2]
[324817622,1714342261881,-728.62,0.00012328,2]
[324817623,1714342261891,-625.41,0.00012328,2]
[324817624,1714342261900,-500.0,0.00012328,2]
[324817625,1714342261909,-500.0,0.00012328,2]
[324817626,1714342261918,-500.0,0.00012328,2]
[324817627,1714342261928,-1176.85,0.00012328,2]
[324817628,1714342261938,-500.0,0.00012328,2]
[324817629,1714342261951,-5743.33,0.00012328,2]
[324817630,1714342261960,-500.0,0.00012328,2]
[324817631,1714342261970,-500.0,0.00012328,2]
[324817632,1714342261980,-500.0,0.00012328,2]
[324817633,1714342261990,-500.0,0.00012328,2]
[324817634,1714342261999,-500.0,0.00012328,2]
[324817635,1714342262009,-603.0,0.00012329,2]
[324817636,1714342262019,-1000.0,0.00012371,2]
[324817637,1714342262028,-251.74141407,0.000125,2]
[324817638,1714342262037,-500.0,0.000126,2]
[324817639,1714342262046,-564.85,0.00012602,2]
[324817640,1714342262056,-500.0,0.00012602,2]
[324817641,1714342262065,-500.0,0.00012602,2]
[324817642,1714342262075,-500.0,0.00012602,2]
[324817643,1714342262085,-500.0,0.00012602,2]
[324817644,1714342262094,-522.87,0.00012602,2]
[324817645,1714342262104,-500.0,0.00012602,2]
[324817646,1714342262113,-415.8,0.00012602,2]
[324817647,1714342262122,-500.0,0.00012602,2]
[324817648,1714342262131,-500.0,0.00012602,2]
[324817649,1714342262141,-500.0,0.00012602,2]
[324817650,1714342262150,-548.48577164,0.00012602,2]
[324817651,1714342262159,-500.0,0.00012602,2]
[324817652,1714342262168,-500.0,0.00012602,2]
[324817653,1714342262177,-500.0,0.00012602,2]
[324817654,1714342262187,-500.0,0.00012602,2]
[324817655,1714342262196,-500.0,0.00012602,2]
[324817656,1714342262208,-500.0,0.00012602,2]
[324817657,1714342262216,-500.0,0.00012602,2]
[324817658,1714342262225,-500.0,0.00012602,2]
[324817659,1714342262234,-500.0,0.00012602,2]
[324817660,1714342262244,-500.0,0.00012602,2]
[324817661,1714342262254,-500.0,0.00012602,2]
[324817662,1714342262264,-500.0,0.00012602,2]
[324817663,1714342262273,-500.0,0.00012602,2]
[324817664,1714342262282,-500.0,0.00012602,2]
[324817665,1714342262291,-500.0,0.00012602,2]
[324817666,1714342262300,-500.0,0.00012602,2]
[324817667,1714342262310,-184.7365122,0.00012602,2]
[324817668,1714342262319,-500.0,0.00012602,2]
[324817669,1714342262328,-500.0,0.00012602,2]
[324817670,1714342262337,-500.0,0.00012602,2]
[324817671,1714342262347,-500.0,0.00012602,2]
[324817672,1714342262357,-500.0,0.00012602,2]
[324817673,1714342262366,-500.0,0.00012602,2]
[324817674,1714342262375,-500.0,0.00012602,2]
[324817675,1714342262384,-500.0,0.00012602,2]
[324817676,1714342262395,-500.0,0.00012602,2]
[324817677,1714342262407,-500.0,0.00012602,2]
[324817678,1714342262416,-500.0,0.00012602,2]
[324817679,1714342262427,-500.0,0.00012602,2]
[324817680,1714342262441,-500.0,0.00012602,2]
[324817681,1714342262452,-500.0,0.00012602,2]
[324817682,1714342262461,-500.0,0.00012602,2]
[324817683,1714342262470,-500.0,0.00012602,2]
[324817684,1714342262481,-500.0,0.00012602,2]
[324817685,1714342262490,-500.0,0.00012602,2]
[324817686,1714342262501,-574.58,0.00012602,2]
[324817687,1714342262513,-516.59,0.00012602,2]
[324817688,1714342262523,-623.2,0.00012602,2]
[324817689,1714342262532,-500.0,0.00012602,2]
[324817690,1714342262542,-1056.15,0.00012602,2]
[324817691,1714342262551,-500.0,0.00012602,2]
[324817692,1714342262560,-2909.84,0.00012602,2]
[324817693,1714342262570,-561.0,0.00012602,2]
[324817694,1714342262580,-500.0,0.00012602,2]
[324817695,1714342262590,-500.0,0.00012602,2]
[324817696,1714342262600,-1217.6,0.00012602,2]
[324817697,1714342262609,-500.0,0.00012602,2]
[324817698,1714342262620,-500.0,0.00012602,2]
[324817699,1714342262630,-618.53,0.00012602,2]
[324817700,1714342262639,-608.99,0.00012602,2]
[324817701,1714342262649,-500.0,0.00012602,2]
[324817702,1714342262658,-523.06,0.00012602,2]
[324817703,1714342262667,-500.0,0.00012602,2]
[324817704,1714342262677,-500.0,0.00012602,2]
[324817705,1714342262686,-1823.73,0.00012602,2]
[324817706,1714342262695,-248.07,0.00012602,2]
[324817707,1714342262706,-500.0,0.00012602,2]
[324817708,1714342262715,-500.0,0.00012602,2]
[324817709,1714342262724,-604.39,0.00012602,2]
[324817710,1714342262732,-761.31,0.00012602,2]
[324817711,1714342262742,-500.0,0.00012602,2]